bitfinex-derivatives/quotes_SOLF0:USTF0_20241120
["timestamp","ask_amount","ask_price","bid_price","bid_amount"]
[1732136935304,10.37562724,235.43,235.36,2.1223]
[1732136935506,2.4,235.44,235.3,1.06167732]
[1732136935805,12.77562724,235.46,235.31,3.46152939]
[1732136936004,12.77562724,235.46,235.31,2.4]
[1732136936606,2.4,235.46,235.31,2.4]
[1732136937504,2.4,235.46,235.35,2.1224]
[1732136938007,2.1217,235.43,235.35,2.1224]
[1732136939702,2.4,235.46,235.31,2.4]
[1732136939903,2.1219,235.41,235.31,2.4]
[1732136940406,2.1218,235.42,235.35,2.1224]
[1732136940707,2.4,235.46,235.31,2.4]
[1732136940898,2.1217,235.44,235.32,1.06141769]
[1732136941098,2.1217,235.44,235.31,2.4]
[1732136941303,2.4,235.46,235.31,2.4]
[1732136942399,16.62320223,235.44,235.28,2.4]
[1732136942807,2.1223,235.37,235.3,2.1229]
[1732136943208,2.4,235.39,235.3,2.1229]
[1732136944307,2.1224,235.36,235.3,2.1229]
[1732136945009,2.1225,235.34,235.28,4.523]
[1732136945209,2.1225,235.34,235.28,2.123]
[1732136945613,2.1225,235.34,235.25,0.27899]
[1732136945804,2.1226,235.33,235.25,0.27899]
[1732136946010,2.439,235.38,235.25,0.27899]
[1732136946509,2.439,235.38,235.29,2.123]
[1732136947316,2.1224,235.35,235.26,1.06175884]
[1732136947615,2.1224,235.35,235.25,0.27899]
[1732136948309,2.1224,235.35,235.28,2.1231]
[1732136949714,2.439,235.38,235.25,0.27899]
[1732136950019,2.1224,235.35,235.29,2.1229]
[1732136950220,2.1224,235.35,235.25,0.27899]
[1732136950416,2.1224,235.35,235.26,1.0617619]
[1732136950614,2.1224,235.35,235.27,1.0617619]
[1732136950812,2.1224,235.35,235.28,1.0617619]
[1732136951014,2.1224,235.35,235.25,0.27899]
[1732136951215,2.1224,235.35,235.26,1.06175692]
[1732136951513,2.1224,235.35,235.27,1.06175692]
[1732136951714,2.1224,235.35,235.3,2.1229]
[1732136952719,2.439,235.38,235.25,0.27899]
[1732136952921,2.1226,235.34,235.29,2.123]
[1732136953919,4.54353225,235.38,235.25,2.40219]
[1732136954218,1.2829,235.37,235.26,1.06186846]
[1732136954411,2.1229,235.31,235.25,2.40219]
[1732136954610,2.1229,235.31,235.26,1.0618891]
[1732136954816,2.1229,235.3,235.25,0.27899]
[1732136955018,2.42,235.32,235.25,0.27899]
[1732136955523,2.1232,235.26,235.25,0.27899]
[1732136956223,2.1235,235.23,235.15,1.06220416]
[1732136956421,2.42,235.26,235.17,2.124]
[1732136956716,2.42,235.26,235.18,1.06227416]
[1732136956921,2.1237,235.22,235.17,2.124]
[1732136957225,2.42,235.26,235.18,3.18613696]
[1732136957418,2.42,235.26,235.18,2.1239]
[1732136957617,2.1235,235.23,235.18,2.1239]
[1732136958117,2.1236,235.22,235.17,2.124]
[1732136958421,2.1236,235.22,235.18,1.06222632]
[1732136958616,2.1236,235.22,235.17,2.124]
[1732136958815,2.1236,235.22,235.18,1.06223863]
[1732136959012,2.1236,235.22,235.17,2.124]
[1732136959223,2.1236,235.22,235.18,1.06223929]
[1732136959416,2.1236,235.22,235.17,2.124]
[1732136960423,2.1236,235.22,235.18,2.124]
[1732136960623,2.1235,235.23,235.18,2.124]
[1732136960821,4.2424,235.49,235.21,10.4055605]
[1732136961020,2.4137,235.39,235.27,2.1231]
[1732136961219,2.42,235.38,235.27,2.1231]
[1732136961426,3.6357,235.38,235.27,2.1231]
[1732136961820,2.1227,235.33,235.27,2.1231]
[1732136964022,1.2157,235.38,235.24,10.4055605]
[1732136964216,3.6357,235.38,235.25,1.06176132]
[1732136964415,3.6357,235.38,235.24,10.4055605]
[1732136964416,3.6357,235.38,235.26,1.06176132]
[1732136964621,3.6357,235.38,235.24,10.4055605]
[1732136964917,3.6357,235.38,235.25,1.06176699]
[1732136965225,3.6357,235.38,235.26,1.06176699]
[1732136965425,2.1228,235.31,235.24,10.4055605]
[1732136965627,2.1228,235.31,235.21,2.471]
[1732136965628,14.0412605,235.38,235.25,1.06176537]
[1732136965922,10.4055605,235.32,235.18,10.4055605]
[1732136966228,10.4055605,235.32,235.21,2.1237]
[1732136966229,2.1233,235.26,235.21,2.1237]
[1732136966722,2.42,235.31,235.18,10.4055605]
[1732136966927,2.1232,235.27,235.22,2.1236]
[1732136969823,2.1232,235.27,235.23,2.1235]
[1732136970028,2.1232,235.27,235.15,0.22278]
[1732136970029,2.42,235.36,235.21,10.4055605]
[1732136970225,2.42,235.36,235.22,1.06192082]
[1732136970527,12.8255605,235.43,235.28,10.4055605]
[1732136970732,3.7144,235.42,235.28,10.4055605]
[1732136970930,3.7144,235.42,235.29,2.1229]
[1732136971133,3.7144,235.42,235.28,10.4055605]
[1732136971426,2.1225,235.35,235.28,10.4055605]
[1732136971931,2.1225,235.34,235.3,2.1229]
[1732136974028,3.7144,235.42,235.3,2.1229]
[1732136974326,10.4055605,235.4,235.27,2.42]
[1732136974533,10.4055605,235.37,235.23,12.8255605]
[1732136974728,2.42,235.36,235.24,1.06195499]
[1732136974929,2.42,235.36,235.25,2.1233]
[1732136975127,2.42,235.36,235.23,12.8255605]
[1732136975328,2.42,235.36,235.16,2.6056]
[1732136975527,10.4055605,235.34,235.18,10.4055605]
[1732136976026,2.1233,235.26,235.19,1.06203503]
[1732136976226,2.1233,235.26,235.2,1.06203503]
[1732136976428,2.1233,235.26,235.21,1.06203503]
[1732136976631,2.1233,235.26,235.18,10.4055605]
[1732136976930,1.2588,235.33,235.21,2.1237]
[1732136977632,2.1233,235.26,235.21,2.1237]
[1732136979932,2.1235,235.26,235.21,2.1239]
[1732136980128,2.42,235.3,235.15,10.4055605]
[1732136980330,2.5488,235.29,235.16,1.06215526]
[1732136980531,2.5488,235.29,235.17,1.06215526]
[1732136980833,2.5488,235.29,235.18,1.06215526]
[1732136981029,2.1235,235.26,235.19,1.06215526]
[1732136981232,2.5488,235.29,235.18,2.1242]
[1732136981434,2.5488,235.29,235.19,1.06216248]
[1732136981635,2.5488,235.29,235.17,2.1243]
[1732136981636,10.4055605,235.28,235.17,2.1243]
[1732136981927,10.4055605,235.28,235.18,1.06221074]
[1732136982133,10.4055605,235.28,235.19,1.06221074]
[1732136982325,10.4055605,235.28,235.15,10.4055605]
[1732136982524,10.4055605,235.28,235.18,2.1242]
[1732136982733,10.4055605,235.28,235.19,1.06221699]
[1732136982923,10.4055605,235.28,235.18,2.1242]
[1732136983125,2.1238,235.23,235.18,2.1242]
[1732136983328,2.1238,235.23,235.19,1.06221826]
[1732136983633,10.4055605,235.28,235.18,2.1242]
[1732136983834,2.1235,235.26,235.19,1.06221699]
[1732136984133,2.5488,235.29,235.18,2.1242]
[1732136984332,2.5488,235.29,235.19,1.06221158]
[1732136984536,2.5488,235.29,235.18,2.1242]
[1732136984734,2.5488,235.29,235.19,1.06221182]
[1732136984936,2.1238,235.23,235.19,2.1241]
[1732136985833,2.1238,235.23,235.18,2.1242]
[1732136986029,2.1238,235.23,235.19,1.06221655]
[1732136986225,2.1238,235.23,235.18,2.1242]
[1732136986430,2.5488,235.29,235.19,1.06221655]
[1732136986628,2.1238,235.22,235.18,2.1242]
[1732136986833,2.1238,235.22,235.19,1.06221664]
[1732136987033,2.1238,235.22,235.18,2.1242]
[1732136987234,2.1238,235.22,235.19,1.06221711]
[1732136987436,2.1238,235.22,235.18,2.1242]
[1732136987629,2.1238,235.22,235.19,1.06221711]
[1732136987829,2.1238,235.22,235.18,2.1242]
[1732136988029,2.1238,235.22,235.19,1.06225857]
[1732136988235,2.1238,235.22,235.18,2.1242]
[1732136989442,2.1237,235.23,235.18,2.1242]
[1732136989739,10.4055605,235.28,235.14,2.4]
[1732136989931,10.4055605,235.28,235.15,1.06230097]
[1732136990130,10.4055605,235.28,235.16,1.06230097]
[1732136990330,10.4055605,235.28,235.17,1.06230097]
[1732136990530,10.4055605,235.28,235.18,3.18650097]
[1732136990731,10.4055605,235.28,235.18,2.1242]
[1732136990935,2.1238,235.22,235.18,2.1242]
[1732136992939,10.4055605,235.25,235.15,2.1244]
[1732136993146,1.2145,235.24,235.16,1.06231864]
[1732136993441,3.6145,235.24,235.17,1.06231864]
[1732136993639,2.1242,235.18,235.14,2.1245]
[1732136993840,3.6145,235.24,235.15,1.06231934]
[1732136994042,3.6145,235.24,235.16,1.06231934]
[1732136994343,2.124,235.2,235.16,2.1243]
[1732136994845,2.1238,235.23,235.18,2.1241]
[1732136995041,1.2145,235.24,235.18,2.1241]
[1732136995740,2.124,235.21,235.16,2.1243]
[1732136995946,1.2145,235.24,235.17,1.06231317]
[1732136996246,1.2145,235.24,235.16,2.1243]
[1732136996447,1.2145,235.24,235.17,1.06231267]
[1732136996645,1.2145,235.24,235.16,2.1243]
[1732136996847,1.2145,235.24,235.17,1.06231259]
[1732136997052,1.2145,235.24,235.16,2.1243]
[1732136997351,1.2145,235.24,235.17,1.06236095]
[1732136997550,2.124,235.21,235.16,2.1243]
[1732136997750,1.2145,235.24,235.17,1.06234849]
[1732136997952,1.2145,235.24,235.16,2.1243]
[1732136998150,2.124,235.2,235.17,1.06234039]
[1732136998353,2.124,235.2,235.16,2.1243]
[1732136998553,2.124,235.2,235.17,1.0623414]
[1732136998754,2.124,235.2,235.16,2.1243]
[1732136999051,2.124,235.2,235.17,1.06234273]
[1732136999251,2.124,235.2,235.16,2.1243]
[1732136999454,2.124,235.2,235.17,1.06233973]
[1732136999658,2.124,235.2,235.16,2.1243]
[1732136999858,2.1242,235.18,235.17,1.06233973]
[1732137000154,2.1242,235.18,235.17,1.0623458]
[1732137000347,2.1241,235.19,235.17,1.0623458]
[1732137000551,10.4055605,235.22,235.07,11.7177605]
[1732137000748,10.4055605,235.22,235.09,2.4]
[1732137000949,10.4055605,235.19,235.1,1.06235947]
[1732137001149,3.7024,235.18,235.08,2.125]
[1732137001358,2.1247,235.12,235.08,2.125]
[1732137001550,10.4055605,235.16,235.05,2.1253]
[1732137001750,10.4055605,235.16,235.09,1.06257053]
[1732137002061,1.3151,235.15,235.0,12.8055605]
[1732137002359,10.4055605,235.13,235.01,1.06275763]
[1732137002557,2.1251,235.08,235.02,1.06275763]
[1732137002755,10.4055605,235.1,235.03,1.06275763]
[1732137003059,2.1253,235.05,235.04,1.06275763]
[1732137003253,2.1253,235.05,234.97,10.4055605]
[1732137003555,10.4055605,235.1,235.01,2.1256]
[1732137003556,2.1253,235.06,235.01,2.1256]
[1732137003759,2.1253,235.06,235.02,1.06286114]
[1732137003956,2.1253,235.06,235.01,2.1256]
[1732137004459,2.1253,235.06,235.02,1.06286464]
[1732137004655,2.1254,235.05,234.99,2.1258]
[1732137004850,2.1254,235.05,235.0,1.06287184]
[1732137005054,2.1254,235.05,235.01,1.06287184]
[1732137005250,2.1254,235.05,235.01,2.1257]
[1732137005760,2.1254,235.05,234.99,2.1258]
[1732137005955,10.4055605,235.07,235.0,1.06286325]
[1732137006155,10.4055605,235.07,234.92,1.06317236]
[1732137006359,10.4055605,235.07,234.96,2.1262]
[1732137006559,2.1257,235.02,234.96,2.1262]
[1732137007261,6.2631,235.06,234.96,2.1262]
[1732137007562,2.1257,235.01,234.96,2.1262]
[1732137008462,10.4055605,235.04,234.89,2.4]
[1732137008655,10.4055605,235.04,234.91,1.06324028]
[1732137008963,12.49417794,235.04,234.89,12.8055605]
[1732137009258,10.4055605,235.01,234.89,2.4]
[1732137009467,6.2631,235.06,234.89,2.4]
[1732137009468,2.4,235.0,234.89,2.4]
[1732137009662,3.8631,235.06,234.89,4.5268]
[1732137009663,2.1264,234.94,234.89,4.5268]
[1732137009855,10.4055605,235.05,234.89,10.4055605]
[1732137010061,3.8631,235.06,234.95,10.4055605]
[1732137010364,2.1255,235.03,234.98,2.1259]
[1732137010565,3.8631,235.06,234.95,10.4055605]
[1732137010765,2.6022,235.06,234.98,10.4055605]
[1732137010965,2.1252,235.07,235.02,2.1256]
[1732137011263,2.1252,235.07,234.98,10.4055605]
[1732137011463,2.4,235.09,234.98,10.4055605]
[1732137012267,2.1253,235.06,235.01,2.1257]
[1732137012458,2.1253,235.06,234.98,10.4055605]
[1732137013362,2.1253,235.06,235.0,2.1258]
[1732137013563,2.4,235.09,234.98,10.4055605]
[1732137013564,2.125,235.09,234.98,12.8055605]
[1732137013765,0.2044,235.14,235.05,2.1253]
[1732137013960,0.2044,235.14,235.01,10.4055605]
[1732137014166,2.1252,235.07,234.95,10.4055605]
[1732137014363,10.4055605,235.12,234.99,2.1258]
[1732137014769,2.1253,235.06,234.97,1.06303089]
[1732137014959,2.1253,235.06,235.0,2.1258]
[1732137015357,2.1253,235.06,235.01,2.1257]
[1732137015559,2.6044,235.14,234.98,10.4055605]
[1732137015560,2.1251,235.08,234.98,10.4055605]
[1732137015763,10.4055605,235.12,234.98,10.4055605]
[1732137016063,2.1252,235.07,235.02,2.1256]
[1732137016763,2.1251,235.09,235.03,2.1255]
[1732137016968,2.6044,235.14,235.03,2.1255]
[1732137017564,2.6044,235.14,234.99,10.4055605]
[1732137017769,2.6044,235.14,235.0,1.06288713]
[1732137017962,2.1248,235.12,235.06,2.1252]
[1732137018159,2.6044,235.14,235.02,10.4055605]
[1732137018460,0.2044,235.14,235.11,2.1248]
[1732137018868,0.2044,235.14,235.07,2.4]
[1732137019163,0.2044,235.14,235.09,2.125]
[1732137019369,0.2044,235.14,235.07,2.4]
[1732137019573,0.2044,235.14,235.08,1.06262944]
[1732137019770,0.2044,235.14,235.07,2.4]
[1732137019967,0.2044,235.14,235.08,1.06262766]
[1732137020164,0.2044,235.14,235.07,2.4]
[1732137020471,0.2044,235.14,235.1,2.1249]
[1732137020868,0.2044,235.14,235.11,2.1248]
[1732137021474,0.2044,235.14,235.13,2.1246]
[1732137022268,0.2044,235.14,235.13,3.18704108]
[1732137023569,10.4055605,235.24,235.13,1.06244108]
[1732137023767,2.1237,235.23,235.18,2.1242]
[1732137024167,2.1236,235.25,235.17,2.1242]
[1732137024373,2.4,235.28,235.14,12.8055605]
[1732137024674,2.4,235.28,235.15,1.06225051]
[1732137024867,2.1236,235.24,235.19,2.124]
[1732137025875,2.1237,235.23,235.18,2.1242]
[1732137027771,2.1236,235.24,235.14,12.8055605]
[1732137027973,2.1236,235.24,235.19,2.124]
[1732137028677,2.1235,235.26,235.21,2.1239]
[1732137028877,13.0001605,235.3,235.17,10.4055605]
[1732137029177,13.0001605,235.3,235.18,1.06216835]
[1732137029373,10.4055605,235.3,235.17,10.4055605]
[1732137029574,2.1234,235.27,235.22,2.1238]
[1732137031179,10.4055605,235.3,235.2,2.4]
[1732137031479,2.1235,235.26,235.2,2.4]
[1732137032970,2.1235,235.26,235.21,2.1238]
[1732137036581,2.1235,235.26,235.22,2.1238]
[1732137036877,2.1235,235.26,235.2,2.4]
[1732137036878,2.1233,235.28,235.2,2.4]
[1732137037176,10.4055605,235.32,235.23,2.1237]
[1732137037484,2.08299442,235.33,235.26,10.4055605]
[1732137037781,10.4055605,235.42,235.27,3.46196313]
[1732137038079,10.4055605,235.42,235.27,2.4]
[1732137038080,2.1226,235.36,235.27,2.4]
[1732137038577,2.1226,235.36,235.29,2.1231]
[1732137038776,10.4055605,235.42,235.26,10.4055605]
[1732137038777,2.1224,235.38,235.26,10.4055605]
[1732137038980,10.4055605,235.39,235.27,1.06168068]
[1732137039176,10.4055605,235.39,235.28,4.5232]
[1732137039380,3.7468,235.38,235.28,4.5232]
[1732137039881,2.1231,235.3,235.24,1.06173594]
[1732137040082,2.1231,235.3,235.27,2.4]
[1732137040483,10.4055605,235.36,235.27,4.5234]
[1732137040681,10.4055605,235.36,235.21,2.6108]
[1732137040981,10.4055605,235.36,235.22,2.4]
[1732137041184,2.1233,235.29,235.24,2.1236]
[1732137041782,2.1235,235.26,235.24,2.4]
[1732137041978,10.4055605,235.36,235.24,2.4]
[1732137042481,3.7468,235.38,235.24,2.4]
[1732137042684,2.09429099,235.37,235.2,10.4055605]
[1732137042986,10.4055605,235.35,235.24,2.1236]
[1732137043686,12.54764211,235.35,235.2,10.4055605]
[1732137043884,12.54764211,235.35,235.21,2.4]
[1732137044484,12.54764211,235.35,235.23,2.1237]
[1732137045187,2.1235,235.26,235.22,2.1238]
[1732137045389,12.54764211,235.35,235.22,2.1238]
[1732137046688,2.4,235.34,235.22,2.1238]
[1732137047089,12.8055605,235.34,235.22,2.1238]
[1732137047984,2.1235,235.26,235.22,2.1238]
[1732137048788,12.8055605,235.34,235.2,12.5294605]
[1732137048983,12.8055605,235.34,235.21,2.4]
[1732137049292,12.8055605,235.34,235.19,2.4]
[1732137050189,10.4055605,235.31,235.17,10.4055605]
[1732137050493,10.4055605,235.31,235.16,2.4]
[1732137050986,2.124,235.2,235.16,4.5243]
[1732137051188,2.124,235.2,235.13,10.4055605]
[1732137051492,2.1241,235.19,235.15,2.1244]
[1732137051694,12.8055605,235.28,235.1,10.4055605]
[1732137051892,3.8449,235.27,235.14,2.4]
[1732137052092,2.1237,235.24,235.14,4.5245]
[1732137052393,14.2504605,235.27,235.14,4.5245]
[1732137053291,2.1243,235.18,235.14,4.5245]
[1732137054783,2.1243,235.18,235.15,6.66075319]
[1732137056895,2.1243,235.17,235.15,6.66075319]
[1732137057790,6.66075319,235.24,235.15,6.66075319]
[1732137057995,3.8449,235.27,235.17,6.66075319]
[1732137058289,6.66075319,235.26,235.17,6.66075319]
[1732137058493,6.66075319,235.24,235.17,6.66075319]
[1732137059293,2.1242,235.18,235.17,6.66075319]
[1732137060496,2.1241,235.19,235.11,2.1248]
[1732137060695,6.66075319,235.22,235.12,7.72326181]
[1732137060895,6.66075319,235.22,235.13,1.06250862]
[1732137061096,6.66075319,235.22,235.12,6.66075319]
[1732137061300,2.1245,235.15,235.13,1.06257271]
[1732137061494,2.1245,235.15,235.12,6.66075319]
[1732137061793,2.1245,235.15,235.13,1.06257943]
[1732137061998,2.1245,235.15,235.14,6.66075319]
[1732137062198,2.1245,235.15,235.14,7.72333286]
[1732137062399,2.1245,235.15,235.14,1.06257967]
[1732137066002,2.1245,235.15,235.13,6.66075319]
[1732137066501,2.1245,235.15,235.14,1.06259109]
[1732137066702,2.1245,235.15,235.13,6.66075319]
[1732137066904,2.1245,235.15,235.14,1.06259109]
[1732137067403,2.1245,235.14,235.13,6.66075319]
[1732137067599,2.1245,235.14,235.13,7.72333422]
[1732137069098,2.1245,235.14,235.13,1.06258103]
[1732137069295,2.1247,235.12,235.11,6.66075319]
[1732137069499,2.1247,235.12,235.11,7.72334478]
[1732137071108,6.66075319,235.2,235.11,7.72334478]
[1732137071304,2.1246,235.14,235.13,6.66075319]
[1732137071900,9.06075319,235.22,235.13,6.66075319]
[1732137072105,2.1244,235.16,235.13,6.66075319]
[1732137072402,2.1244,235.16,235.15,6.66075319]
[1732137072803,2.4,235.22,235.13,6.66075319]
[1732137072999,2.1245,235.14,235.13,6.66075319]
[1732137074007,2.1245,235.15,235.11,6.66075319]
[1732137074203,2.1245,235.15,235.12,1.06252271]
[1732137074408,2.1245,235.15,235.11,8.78545319]
[1732137074608,2.1245,235.15,235.12,1.06253699]
[1732137074810,2.1245,235.15,235.11,8.78545319]
[1732137075010,2.1245,235.15,235.12,1.06253708]
[1732137075211,2.1245,235.15,235.13,6.66075319]
[1732137079413,4.2461,235.31,235.13,6.66075319]
[1732137079615,9.06075319,235.28,235.18,6.66075319]
[1732137080119,6.66075319,235.26,235.18,6.66075319]
[1732137081322,2.124,235.2,235.18,6.66075319]
[1732137083219,32.01251255,235.38,235.18,6.66075319]
[1732137083421,6.66075319,235.29,235.21,6.66075319]
[1732137084221,2.1238,235.23,235.21,6.66075319]
[1732137084622,2.1238,235.23,235.19,6.66075319]
[1732137085224,2.1238,235.23,235.19,2.1241]
[1732137085425,2.1238,235.23,235.19,8.78485319]
[1732137087222,2.1238,235.23,235.2,1.06232272]
[1732137087524,2.1238,235.23,235.19,8.78485319]
[1732137087726,2.1238,235.23,235.2,1.06232206]
[1732137087922,2.1238,235.23,235.19,8.78485319]
[1732137088226,2.1238,235.23,235.21,6.66075319]
[1732137089620,3.8449,235.27,235.21,6.66075319]
[1732137090128,3.8449,235.27,235.22,1.0621951]
[1732137090422,4.245,235.37,235.23,6.66075319]
[1732137090629,10.52595319,235.34,235.25,6.66075319]
[1732137090819,6.66075319,235.29,235.13,1.3251]
[1732137091024,6.66075319,235.25,235.14,1.0621213]
[1732137091223,6.66075319,235.25,235.16,6.66075319]
[1732137091526,2.1241,235.19,235.17,1.0621213]
[1732137091723,2.1241,235.19,235.18,1.0621213]
[1732137092026,6.66075319,235.25,235.18,1.0621213]
[1732137092222,6.66075319,235.25,235.19,1.0621213]
[1732137092422,2.1238,235.23,235.17,2.1242]
[1732137092629,6.66075319,235.27,235.18,9.84728649]
[1732137092930,6.66075319,235.27,235.19,1.0623333]
[1732137093222,2.4,235.3,235.15,2.4]
[1732137093223,9.06075319,235.3,235.22,2.1238]
[1732137093425,6.66075319,235.3,235.22,8.78455319]
[1732137093627,2.1235,235.26,235.23,1.06217376]
[1732137093826,2.1235,235.26,235.22,8.78455319]
[1732137093827,6.66075319,235.3,235.22,6.66075319]
[1732137094122,6.66075319,235.32,235.23,1.06212625]
[1732137094328,6.66075319,235.32,235.24,7.72287944]
[1732137094524,6.66075319,235.32,235.26,2.1234]
[1732137094727,2.1232,235.3,235.27,1.06212625]
[1732137094925,2.1232,235.3,235.26,2.1234]
[1732137095127,2.1232,235.3,235.27,1.06198565]
[1732137095322,2.1232,235.29,235.26,2.1234]
[1732137095521,2.1232,235.29,235.27,1.06200712]
[1732137095824,6.66075319,235.28,235.12,5.83591113]
[1732137096132,6.66075319,235.23,235.15,6.66075319]
[1732137096327,2.1241,235.2,235.16,1.06235364]
[1732137096623,2.1241,235.2,235.15,8.78515319]
[1732137096624,6.66075319,235.23,235.17,1.06235364]
[1732137096829,6.66075319,235.23,235.18,1.06235524]
[1732137097125,2.1238,235.22,235.19,1.06235524]
[1732137097430,2.1238,235.22,235.17,2.1242]
[1732137097629,2.1238,235.22,235.18,1.06234622]
[1732137097931,2.1239,235.21,235.19,1.06234622]
[1732137098123,2.1239,235.21,235.17,2.1242]
[1732137098325,2.1239,235.21,235.18,1.06236316]
[1732137098527,2.1239,235.21,235.19,1.06236906]
[1732137098725,2.1239,235.21,235.17,2.1242]
[1732137098927,2.1239,235.21,235.18,1.06237225]
[1732137099128,2.1239,235.21,235.17,2.1242]
[1732137099427,2.1239,235.21,235.18,1.06235642]
[1732137099628,2.1239,235.21,235.17,2.1242]
[1732137099825,2.1239,235.21,235.19,1.06235642]
[1732137100030,2.1239,235.21,235.17,2.1242]
[1732137100329,2.1238,235.22,235.18,3.18653831]
[1732137100532,6.66075319,235.25,235.19,1.06233831]
[1732137100732,6.66075319,235.25,235.2,1.06233831]
[1732137100931,6.66075319,235.27,235.19,6.66075319]
[1732137101129,6.66075319,235.27,235.2,1.06227114]
[1732137101425,6.66075319,235.27,235.19,6.66075319]
[1732137101623,6.66075319,235.27,235.2,1.06228859]
[1732137101829,6.66075319,235.27,235.19,6.66075319]
[1732137102125,6.66075319,235.27,235.2,1.06229207]
[1732137102331,2.1236,235.24,235.21,1.06226084]
[1732137102523,2.1236,235.24,235.2,2.1239]
[1732137102727,2.1236,235.24,235.21,1.06225261]
[1732137102922,6.66075319,235.27,235.14,2.4]
[1732137103227,6.66075319,235.27,235.18,6.66075319]
[1732137103424,6.66075319,235.25,235.19,1.06223546]
[1732137103628,2.1237,235.24,235.2,3.18623546]
[1732137103828,2.1237,235.24,235.21,1.06223546]
[1732137104133,2.1237,235.24,235.2,2.124]
[1732137104531,2.1237,235.23,235.2,2.124]
[1732137105931,2.1237,235.23,235.21,1.0622712]
[1732137106126,2.1237,235.23,235.2,2.124]
[1732137106331,2.1237,235.23,235.21,1.06223782]
[1732137106532,2.1237,235.23,235.2,2.124]
[1732137107035,2.1237,235.23,235.21,1.06226434]
[1732137107230,2.1237,235.23,235.2,2.124]
[1732137107435,2.1237,235.23,235.21,1.06226398]
[1732137107635,2.1237,235.23,235.2,2.124]
[1732137107831,2.1237,235.23,235.21,1.06225367]
[1732137108033,2.1237,235.23,235.2,2.124]
[1732137108233,2.1237,235.23,235.21,1.06226199]
[1732137108434,2.1237,235.23,235.1,1.222]
[1732137108435,6.66075319,235.23,235.17,2.1242]
[1732137108635,6.66075319,235.23,235.18,1.06234867]
[1732137108936,2.124,235.21,235.19,1.06234867]
[1732137109139,2.124,235.21,235.18,2.1242]
[1732137109334,2.124,235.21,235.19,1.06233849]
[1732137109538,2.124,235.21,235.2,1.06232873]
[1732137109729,2.124,235.21,235.17,2.1242]
[1732137109936,2.124,235.21,235.18,1.06235084]
[1732137110132,2.124,235.21,235.17,2.1242]
[1732137110336,6.66075319,235.25,235.18,1.06235067]
[1732137110638,2.1237,235.23,235.19,3.18645067]
[1732137110839,2.1237,235.23,235.2,1.06235067]
[1732137111033,2.1237,235.24,235.19,2.1241]
[1732137111239,6.66075319,235.25,235.2,1.06231683]
[1732137111540,6.66075319,235.25,235.18,2.1242]
[1732137111739,6.66075319,235.25,235.19,1.0623245]
[1732137112041,6.66075319,235.25,235.2,1.0623245]
[1732137112339,6.66075319,235.25,235.18,2.1242]
[1732137112532,2.1238,235.23,235.19,3.18642167]
[1732137112735,2.1238,235.23,235.2,1.06232167]
[1732137112937,2.1238,235.23,235.21,1.06232167]
[1732137113239,2.1238,235.23,235.19,2.1241]
[1732137113440,2.1238,235.23,235.2,1.06227218]
[1732137113642,2.1238,235.23,235.21,1.06227218]
[1732137113834,2.1238,235.23,235.19,2.1241]
[1732137114035,2.1238,235.23,235.2,1.06227445]
[1732137114236,2.1238,235.23,235.21,1.06227445]
[1732137114437,2.1238,235.23,235.2,2.124]
[1732137114738,2.1238,235.23,235.21,1.06228076]
[1732137114938,2.1238,235.23,235.2,2.124]
[1732137115232,2.1238,235.23,235.21,1.06227483]
[1732137115435,2.1238,235.22,235.2,2.124]
[1732137115636,2.1238,235.22,235.21,1.06228871]
[1732137117041,2.1239,235.21,235.18,2.1242]
[1732137117237,2.1239,235.21,235.19,1.06232125]
[1732137117440,2.1239,235.21,235.2,1.06232125]
[1732137117639,6.66075319,235.25,235.2,1.06232125]
[1732137117841,6.66075319,235.25,235.21,1.06232125]
[1732137118036,6.66075319,235.25,235.19,2.1241]
[1732137118242,6.66075319,235.25,235.2,1.0622867]
[1732137118441,6.66075319,235.25,235.21,1.0622867]